[Event "*** Titled Tuesday Blitz"]
[Site "Chess.com"]
[Date "2020.01.07"]
[Round "3"]
[White "wannabe2700"]
[Black "Manukyan_Artak"]
[Result "1-0"]
[WhiteElo "2764"]
[BlackElo "2479"]
[TimeControl "180+2"]
[EndTime "13:35:09 PST"]
[Termination "wannabe2700 won by resignation"]

1. b3 {[%clk 0:03:01.7]} 1... Nf6 {[%clk 0:03:00.5]} 2. Bb2 {[%clk 0:03:02.6]}
2... g6 {[%clk 0:03:02.4]} 3. Nf3 {[%clk 0:03:02.8]} 3... Bg7 {[%clk 0:03:03.5]}
4. g3 {[%clk 0:03:03.2]} 4... O-O {[%clk 0:03:04.5]} 5. Bg2 {[%clk 0:03:04.9]}
5... c5 {[%clk 0:03:05.2]} 6. c4 {[%clk 0:03:05.5]} 6... Nc6 {[%clk 0:03:06.3]}
7. O-O {[%clk 0:03:06.5]} 7... b6 {[%clk 0:02:55.2]} 8. d4 {[%clk 0:03:03.1]}
8... cxd4 {[%clk 0:02:56]} 9. Nxd4 {[%clk 0:03:03]} 9... Bb7 {[%clk 0:02:57.2]}
10. Nc3 {[%clk 0:03:00.1]} 10... a6 {[%clk 0:02:51.6]} 11. Nd5 {[%clk
0:02:55.2]} 11... Nxd5 {[%clk 0:02:40.8]} 12. cxd5 {[%clk 0:02:56]} 12... Nxd4
{[%clk 0:02:40.6]} 13. Bxd4 {[%clk 0:02:57.5]} 13... d6 {[%clk 0:02:34.6]} 14.
Bxg7 {[%clk 0:02:57.4]} 14... Kxg7 {[%clk 0:02:36.5]} 15. Qd4+ {[%clk
0:02:58.7]} 15... f6 {[%clk 0:02:35.3]} 16. Rac1 {[%clk 0:02:57.4]} 16... Rc8
{[%clk 0:02:34.3]} 17. Rxc8 {[%clk 0:02:57.8]} 17... Bxc8 {[%clk 0:02:34.9]} 18.
Rc1 {[%clk 0:02:58.2]} 18... Bd7 {[%clk 0:02:33.3]} 19. e4 {[%clk 0:02:58.4]}
19... Qb8 {[%clk 0:02:32.2]} 20. Bf1 {[%clk 0:02:57.5]} 20... a5 {[%clk
0:02:22.2]} 21. Ba6 {[%clk 0:02:51.7]} 21... Qa7 {[%clk 0:01:59.7]} 22. Qd3
{[%clk 0:02:50.4]} 22... h5 {[%clk 0:01:45.9]} 23. h4 {[%clk 0:02:50.4]} 23...
Kf7 {[%clk 0:01:33.9]} 24. Kg2 {[%clk 0:02:45.8]} 24... Ra8 {[%clk 0:01:26.7]}
25. Bb5 {[%clk 0:02:46]} 25... Bxb5 {[%clk 0:01:22.2]} 26. Qxb5 {[%clk
0:02:46.8]} 26... Qa6 {[%clk 0:01:21.5]} 27. Qd7 {[%clk 0:02:43.9]} 27... Ra7
{[%clk 0:01:19.3]} 28. Qe6+ {[%clk 0:02:44.2]} 28... Kg7 {[%clk 0:01:14.5]} 29.
Rc8 {[%clk 0:02:43.1]} 29... Ra8 {[%clk 0:01:12.8]} 30. Qg8+ {[%clk 0:02:43.5]}
1-0

[Event "*** Titled Tuesday Blitz"]
[Site "Chess.com"]
[Date "2020.01.07"]
[Round "3"]
[White "Ar4uha"]
[Black "Korona_91"]
[Result "1-0"]
[WhiteElo "2600"]
[BlackElo "2373"]
[TimeControl "180+2"]
[EndTime "13:35:11 PST"]
[Termination "Ar4uha won by resignation"]

1. e4 {[%clk 0:03:01.1]} 1... e6 {[%clk 0:02:57.6]} 2. c4 {[%clk 0:03:00.4]}
2... d5 {[%clk 0:02:57.8]} 3. exd5 {[%clk 0:03:02.3]} 3... exd5 {[%clk
0:02:59.4]} 4. cxd5 {[%clk 0:03:04.2]} 4... Nf6 {[%clk 0:03:00.9]} 5. Bb5+
{[%clk 0:03:04.9]} 5... c6 {[%clk 0:03:01.5]} 6. dxc6 {[%clk 0:03:05.5]} 6...
bxc6 {[%clk 0:03:02.6]} 7. Bc4 {[%clk 0:03:05.7]} 7... Bc5 {[%clk 0:03:02.9]} 8.
Nf3 {[%clk 0:03:06.1]} 8... O-O {[%clk 0:02:56.9]} 9. O-O {[%clk 0:03:06.1]}
9... Bg4 {[%clk 0:02:57.8]} 10. Nc3 {[%clk 0:03:05.4]} 10... Nbd7 {[%clk
0:02:51.7]} 11. d4 {[%clk 0:03:05.1]} 11... Bxf3 {[%clk 0:02:44.4]} 12. Qxf3
{[%clk 0:03:07]} 12... Bxd4 {[%clk 0:02:45.6]} 13. Bb3 {[%clk 0:03:08.4]} 13...
Ne5 {[%clk 0:02:45.5]} 14. Qg3 {[%clk 0:03:09.8]} 14... Ng6 {[%clk 0:02:43.4]}
15. Bg5 {[%clk 0:03:10.7]} 15... h6 {[%clk 0:02:29.4]} 16. Bxh6 {[%clk 0:03:09]}
16... Nd5 {[%clk 0:02:09.2]} 17. Nxd5 {[%clk 0:03:03.8]} 17... cxd5 {[%clk
0:02:10.3]} 18. Rad1 {[%clk 0:03:04.5]} 18... Be5 {[%clk 0:02:07.5]} 19. f4
{[%clk 0:03:05.9]} 19... Bxb2 {[%clk 0:02:03.6]} 20. Rxd5 {[%clk 0:03:02]} 20...
Qb6+ {[%clk 0:02:04.2]} 21. Kh1 {[%clk 0:03:02]} 21... gxh6 {[%clk 0:02:05.6]}
22. f5 {[%clk 0:03:02.1]} 22... Kh7 {[%clk 0:02:00.4]} 23. Rd6 {[%clk
0:02:58.5]} 23... Qc5 {[%clk 0:01:34.9]} 24. fxg6+ {[%clk 0:02:32.9]} 24... Kh8
{[%clk 0:01:35]} 25. gxf7 {[%clk 0:02:34.3]} 25... Bg7 {[%clk 0:01:33]} 26. Qg6
{[%clk 0:02:25.4]} 26... Rad8 {[%clk 0:01:29.9]} 27. Rxd8 {[%clk 0:02:22.8]}
27... Rxd8 {[%clk 0:01:31.1]} 28. Bc2 {[%clk 0:02:24.4]} 1-0

[Event "*** Titled Tuesday Blitz"]
[Site "Chess.com"]
[Date "2020.01.07"]
[Round "3"]
[White "chito89"]
[Black "Hikaru"]
[Result "0-1"]
[WhiteElo "2713"]
[BlackElo "3136"]
[TimeControl "180+2"]
[EndTime "13:35:22 PST"]
[Termination "Hikaru won by resignation"]

1. d4 {[%clk 0:02:57.2]} 1... e6 {[%clk 0:03:00.2]} 2. Nf3 {[%clk 0:02:56.5]}
2... Nf6 {[%clk 0:03:00.5]} 3. c4 {[%clk 0:02:57.4]} 3... d5 {[%clk 0:03:01.7]}
4. g3 {[%clk 0:02:57.8]} 4... Be7 {[%clk 0:03:02.8]} 5. Bg2 {[%clk 0:02:59.1]}
5... O-O {[%clk 0:03:04.5]} 6. O-O {[%clk 0:03:00.5]} 6... dxc4 {[%clk
0:03:06.2]} 7. Qc2 {[%clk 0:03:01.9]} 7... a6 {[%clk 0:03:07.8]} 8. a4 {[%clk
0:03:02.2]} 8... Bd7 {[%clk 0:03:08.3]} 9. Rd1 {[%clk 0:03:00.7]} 9... Bc6
{[%clk 0:03:09.3]} 10. Nc3 {[%clk 0:03:00]} 10... Bxf3 {[%clk 0:03:10.3]} 11.
Bxf3 {[%clk 0:03:01.1]} 11... Nc6 {[%clk 0:03:12.2]} 12. Bxc6 {[%clk 0:02:58.8]}
12... bxc6 {[%clk 0:03:14.1]} 13. Bg5 {[%clk 0:02:56.2]} 13... Rb8 {[%clk
0:03:11]} 14. Bxf6 {[%clk 0:02:52.8]} 14... Bxf6 {[%clk 0:03:12]} 15. e3 {[%clk
0:02:53.7]} 15... c5 {[%clk 0:02:53.7]} 16. Ne4 {[%clk 0:01:55.9]} 16... cxd4
{[%clk 0:02:51.7]} 17. Nxf6+ {[%clk 0:01:57.2]} 17... Qxf6 {[%clk 0:02:51.2]}
18. Rxd4 {[%clk 0:01:58.9]} 18... c5 {[%clk 0:02:50.5]} 19. Rd2 {[%clk
0:01:55.4]} 19... Rb4 {[%clk 0:02:50.4]} 20. Rad1 {[%clk 0:01:50.4]} 20... a5
{[%clk 0:02:47.6]} 21. Qc3 {[%clk 0:01:39.7]} 21... Rxa4 {[%clk 0:02:38.8]} 22.
Rd6 {[%clk 0:01:10.7]} 22... Rb4 {[%clk 0:02:37.3]} 23. Rc6 {[%clk 0:01:08.6]}
23... Rxb2 {[%clk 0:02:33.5]} 24. Qxf6 {[%clk 0:01:09.3]} 24... gxf6 {[%clk
0:02:35.4]} 25. Rxc5 {[%clk 0:01:11]} 25... a4 {[%clk 0:02:30.2]} 26. Ra1 {[%clk
0:01:10.5]} 26... Ra8 {[%clk 0:02:27.6]} 0-1

[Event "*** Titled Tuesday Blitz"]
[Site "Chess.com"]
[Date "2020.01.07"]
[Round "3"]
[White "MarcoRiehle"]
[Black "Pultis"]
[Result "1/2-1/2"]
[WhiteElo "2637"]
[BlackElo "2844"]
[TimeControl "180+2"]
[EndTime "13:35:24 PST"]
[Termination "Game drawn by repetition"]

1. e4 {[%clk 0:03:01.9]} 1... e5 {[%clk 0:02:59.9]} 2. Nf3 {[%clk 0:03:02.8]}
2... Nc6 {[%clk 0:03:01.4]} 3. Bc4 {[%clk 0:03:04.3]} 3... Bc5 {[%clk
0:03:00.3]} 4. c3 {[%clk 0:03:04.6]} 4... Nf6 {[%clk 0:03:00.5]} 5. d4 {[%clk
0:03:05.4]} 5... exd4 {[%clk 0:03:02.4]} 6. cxd4 {[%clk 0:03:06.7]} 6... Bb4+
{[%clk 0:03:01.9]} 7. Kf1 {[%clk 0:03:08.2]} 7... Nxe4 {[%clk 0:02:37.5]} 8. d5
{[%clk 0:03:07.9]} 8... Ne7 {[%clk 0:02:36.8]} 9. Qd4 {[%clk 0:03:08]} 9... Nf6
{[%clk 0:02:34.1]} 10. Bg5 {[%clk 0:03:04.6]} 10... Ng6 {[%clk 0:02:17.7]} 11.
Bd3 {[%clk 0:03:04.2]} 11... Be7 {[%clk 0:02:16.6]} 12. Nc3 {[%clk 0:02:53.5]}
12... O-O {[%clk 0:02:16.6]} 13. h4 {[%clk 0:02:52.4]} 13... Nh5 {[%clk
0:02:02.7]} 14. g4 {[%clk 0:02:38]} 14... Bf6 {[%clk 0:01:13.1]} 15. Qa4 {[%clk
0:02:10.5]} 15... b5 {[%clk 0:01:01]} 16. Nxb5 {[%clk 0:02:05.5]} 16... Bxg5
{[%clk 0:00:53.2]} 17. hxg5 {[%clk 0:02:05]} 17... Nhf4 {[%clk 0:00:54.8]} 18.
Qxf4 {[%clk 0:02:03.7]} 18... Nxf4 {[%clk 0:00:53.7]} 19. Bxh7+ {[%clk
0:02:03.7]} 19... Kh8 {[%clk 0:00:55]} 20. Bf5+ {[%clk 0:02:00.5]} 20... Kg8
{[%clk 0:00:55.4]} 21. Bh7+ {[%clk 0:02:01.2]} 21... Kh8 {[%clk 0:00:56.2]} 22.
Bf5+ {[%clk 0:02:01.2]} 22... Kg8 {[%clk 0:00:57.4]} 23. Bh7+ {[%clk 0:02:01.4]}
1/2-1/2

[Event "*** Titled Tuesday Blitz"]
[Site "Chess.com"]
[Date "2020.01.07"]
[Round "3"]
[White "Kimster98"]
[Black "WelshTiger"]
[Result "1-0"]
[WhiteElo "2600"]
[BlackElo "2380"]
[TimeControl "180+2"]
[EndTime "13:36:05 PST"]
[Termination "Kimster98 won by resignation"]

1. Nf3 {[%clk 0:03:01.9]} 1... c5 {[%clk 0:02:59.1]} 2. b3 {[%clk 0:03:01.5]}
2... Nc6 {[%clk 0:02:57.7]} 3. Bb2 {[%clk 0:03:02.6]} 3... d6 {[%clk 0:02:58.1]}
4. d4 {[%clk 0:03:01.5]} 4... cxd4 {[%clk 0:02:51.8]} 5. Nxd4 {[%clk 0:03:03.4]}
5... e5 {[%clk 0:02:51.1]} 6. Nb5 {[%clk 0:03:00.3]} 6... a6 {[%clk 0:02:45.7]}
7. N5c3 {[%clk 0:03:01.3]} 7... Nf6 {[%clk 0:02:46.7]} 8. e4 {[%clk 0:03:00.8]}
8... Be7 {[%clk 0:02:43.8]} 9. Nd2 {[%clk 0:03:00.5]} 9... b5 {[%clk 0:02:42.6]}
10. a4 {[%clk 0:02:58.5]} 10... b4 {[%clk 0:02:37.8]} 11. Nd5 {[%clk 0:02:58.4]}
11... Nxd5 {[%clk 0:02:35]} 12. exd5 {[%clk 0:03:00.3]} 12... Nb8 {[%clk
0:02:36.5]} 13. a5 {[%clk 0:03:01.4]} 13... O-O {[%clk 0:02:34.1]} 14. Nc4
{[%clk 0:03:01.7]} 14... Nd7 {[%clk 0:02:29.5]} 15. Be2 {[%clk 0:03:01.9]} 15...
Bb7 {[%clk 0:02:23]} 16. O-O {[%clk 0:02:58.7]} 16... Rb8 {[%clk 0:02:13.2]} 17.
Ra4 {[%clk 0:02:54.8]} 17... Nf6 {[%clk 0:02:11.7]} 18. Nb6 {[%clk 0:02:55.2]}
18... Ne4 {[%clk 0:01:52.9]} 19. Rxb4 {[%clk 0:02:53.6]} 19... f5 {[%clk
0:01:53]} 20. Nc4 {[%clk 0:02:26.2]} 20... Nc5 {[%clk 0:00:47.9]} 21. Ba3 {[%clk
0:02:15.8]} 21... Ne4 {[%clk 0:00:41.7]} 22. Rb6 {[%clk 0:02:13.3]} 22... Nc3
{[%clk 0:00:41.8]} 23. Qd2 {[%clk 0:02:12.5]} 23... Nxd5 {[%clk 0:00:42.2]} 24.
Rxb7 {[%clk 0:02:06.9]} 24... Rxb7 {[%clk 0:00:34.1]} 25. Qxd5+ {[%clk 0:02:07]}
1-0

[Event "*** Titled Tuesday Blitz"]
[Site "Chess.com"]
[Date "2020.01.07"]
[Round "3"]
[White "Caisachess"]
[Black "AminMolaei"]
[Result "0-1"]
[WhiteElo "2365"]
[BlackElo "2576"]
[TimeControl "180+2"]
[EndTime "13:36:12 PST"]
[Termination "AminMolaei won by resignation"]

1. e4 {[%clk 0:03:01.9]} 1... e5 {[%clk 0:03:00.9]} 2. Nf3 {[%clk 0:03:01.4]}
2... Nc6 {[%clk 0:03:01.9]} 3. Bc4 {[%clk 0:03:02.8]} 3... Bc5 {[%clk
0:03:02.9]} 4. d3 {[%clk 0:03:03.2]} 4... Nf6 {[%clk 0:03:04.1]} 5. O-O {[%clk
0:03:04.1]} 5... a6 {[%clk 0:03:05.2]} 6. c3 {[%clk 0:03:01.9]} 6... d6 {[%clk
0:03:06.1]} 7. b4 {[%clk 0:03:02.2]} 7... Ba7 {[%clk 0:03:07.4]} 8. h3 {[%clk
0:03:03.4]} 8... h6 {[%clk 0:03:08.6]} 9. Re1 {[%clk 0:03:04.6]} 9... g5 {[%clk
0:03:09.6]} 10. Nbd2 {[%clk 0:02:57.3]} 10... g4 {[%clk 0:03:10.2]} 11. hxg4
{[%clk 0:02:57.6]} 11... Nxg4 {[%clk 0:03:11.6]} 12. Re2 {[%clk 0:02:56.3]}
12... Rg8 {[%clk 0:03:12.6]} 13. Qb3 {[%clk 0:02:56.5]} 13... Qf6 {[%clk
0:03:13.4]} 14. a4 {[%clk 0:02:51.7]} 14... Qg7 {[%clk 0:03:04.9]} 15. Ne1
{[%clk 0:02:31.1]} 15... Nd8 {[%clk 0:02:48.4]} 16. Ndf3 {[%clk 0:02:23.5]}
16... Ne6 {[%clk 0:02:43.1]} 17. Be3 {[%clk 0:02:09.6]} 17... Nxe3 {[%clk
0:02:37.5]} 18. fxe3 {[%clk 0:02:10.2]} 18... Nf4 {[%clk 0:02:37.4]} 19. d4
{[%clk 0:02:01.2]} 19... Nxe2+ {[%clk 0:02:33.7]} 20. Bxe2 {[%clk 0:02:02.9]}
20... Bh3 {[%clk 0:02:33.3]} 21. Bf1 {[%clk 0:02:02.7]} 21... Qg3 {[%clk
0:02:29.2]} 22. Rd1 {[%clk 0:01:50.3]} 22... Bg4 {[%clk 0:02:21.3]} 23. Be2
{[%clk 0:01:40.1]} 23... h5 {[%clk 0:02:17.3]} 24. Qd5 {[%clk 0:01:31.5]} 24...
O-O-O {[%clk 0:02:04.8]} 25. Qc4 {[%clk 0:00:59.4]} 25... h4 {[%clk 0:01:52.2]}
0-1

[Event "*** Titled Tuesday Blitz"]
[Site "Chess.com"]
[Date "2020.01.07"]
[Round "3"]
[White "The_Bestplayer"]
[Black "josiwales"]
[Result "1-0"]
[WhiteElo "2873"]
[BlackElo "2641"]
[TimeControl "180+2"]
[EndTime "13:36:21 PST"]
[Termination "The_Bestplayer won by resignation"]

1. e4 {[%clk 0:03:01.9]} 1... c5 {[%clk 0:02:58.7]} 2. Nf3 {[%clk 0:03:02.8]}
2... Nc6 {[%clk 0:02:57.6]} 3. d4 {[%clk 0:03:03.5]} 3... cxd4 {[%clk
0:02:59.5]} 4. Nxd4 {[%clk 0:03:05]} 4... Nf6 {[%clk 0:03:01.3]} 5. Nc3 {[%clk
0:03:05.4]} 5... e5 {[%clk 0:03:02.9]} 6. Ndb5 {[%clk 0:03:06]} 6... d6 {[%clk
0:03:04.5]} 7. Bg5 {[%clk 0:03:05]} 7... a6 {[%clk 0:03:05.7]} 8. Na3 {[%clk
0:03:05.6]} 8... b5 {[%clk 0:03:06.9]} 9. Nab1 {[%clk 0:03:06.1]} 9... Be7
{[%clk 0:03:03.2]} 10. Bxf6 {[%clk 0:03:04.3]} 10... Bxf6 {[%clk 0:03:03.9]} 11.
a4 {[%clk 0:03:06]} 11... b4 {[%clk 0:03:03.7]} 12. Nd5 {[%clk 0:03:06.9]} 12...
Bg5 {[%clk 0:03:03.7]} 13. Bc4 {[%clk 0:03:04]} 13... O-O {[%clk 0:03:02.5]} 14.
O-O {[%clk 0:03:04.3]} 14... Be6 {[%clk 0:03:02.3]} 15. c3 {[%clk 0:02:50.1]}
15... a5 {[%clk 0:02:48.5]} 16. Qd3 {[%clk 0:02:45.7]} 16... Kh8 {[%clk
0:02:45.1]} 17. Nd2 {[%clk 0:02:41]} 17... f5 {[%clk 0:02:43.8]} 18. Rad1 {[%clk
0:02:26.6]} 18... Rc8 {[%clk 0:02:30.6]} 19. Nb6 {[%clk 0:02:09.3]} 19... Bxc4
{[%clk 0:01:28.4]} 20. Ndxc4 {[%clk 0:02:11.2]} 20... fxe4 {[%clk 0:01:22.6]}
21. Qxe4 {[%clk 0:02:08.9]} 21... Rf4 {[%clk 0:01:04.3]} 22. Qd5 {[%clk
0:01:47.3]} 22... Ne7 {[%clk 0:01:05]} 23. Qxd6 {[%clk 0:01:41.5]} 23... Qxd6
{[%clk 0:01:05.7]} 24. Nxd6 {[%clk 0:01:41.1]} 24... Rc5 {[%clk 0:00:52.1]} 25.
cxb4 {[%clk 0:01:32.4]} 25... Rxb4 {[%clk 0:00:50.7]} 26. Nf7+ {[%clk
0:01:33.1]} 26... Kg8 {[%clk 0:00:47.9]} 27. Nxg5 {[%clk 0:01:34.3]} 1-0

[Event "*** Titled Tuesday Blitz"]
[Site "Chess.com"]
[Date "2020.01.07"]
[Round "3"]
[White "Szczor"]
[Black "JMatias"]
[Result "0-1"]
[WhiteElo "2587"]
[BlackElo "2415"]
[TimeControl "180+2"]
[EndTime "13:36:36 PST"]
[Termination "JMatias won by checkmate"]

1. e4 {[%clk 0:03:01.9]} 1... e5 {[%clk 0:03:00.1]} 2. Nf3 {[%clk 0:02:58.6]}
2... Nc6 {[%clk 0:03:01.4]} 3. Bb5 {[%clk 0:02:59.3]} 3... a6 {[%clk 0:03:02.7]}
4. Ba4 {[%clk 0:02:59.6]} 4... Nf6 {[%clk 0:03:04]} 5. O-O {[%clk 0:03:00.8]}
5... Be7 {[%clk 0:03:05.1]} 6. d3 {[%clk 0:03:01.4]} 6... b5 {[%clk 0:03:05.9]}
7. Bb3 {[%clk 0:03:02.7]} 7... d6 {[%clk 0:03:06.1]} 8. a4 {[%clk 0:03:02.5]}
8... Rb8 {[%clk 0:03:06.4]} 9. axb5 {[%clk 0:03:03.2]} 9... axb5 {[%clk
0:03:08.3]} 10. Nc3 {[%clk 0:03:03.9]} 10... O-O {[%clk 0:03:09.3]} 11. Nd5
{[%clk 0:03:05.1]} 11... Bg4 {[%clk 0:03:06.3]} 12. c3 {[%clk 0:03:06]} 12...
Nxd5 {[%clk 0:03:00]} 13. Bxd5 {[%clk 0:03:06.4]} 13... Qd7 {[%clk 0:03:01.2]}
14. h3 {[%clk 0:03:01.4]} 14... Be6 {[%clk 0:03:00]} 15. Bxe6 {[%clk 0:03:00.1]}
15... fxe6 {[%clk 0:02:55.3]} 16. Nh2 {[%clk 0:02:59.9]} 16... Kh8 {[%clk
0:02:53.5]} 17. Qg4 {[%clk 0:03:00.4]} 17... b4 {[%clk 0:02:51.2]} 18. f4 {[%clk
0:03:00.2]} 18... exf4 {[%clk 0:02:50.1]} 19. Bxf4 {[%clk 0:03:02.1]} 19... bxc3
{[%clk 0:02:51.3]} 20. bxc3 {[%clk 0:03:02.9]} 20... Bf6 {[%clk 0:02:36.4]} 21.
d4 {[%clk 0:03:01.7]} 21... Qe7 {[%clk 0:02:34.2]} 22. Bd2 {[%clk 0:02:50.4]}
22... Rb2 {[%clk 0:02:23.1]} 23. Nf3 {[%clk 0:02:46]} 23... e5 {[%clk
0:02:16.6]} 24. d5 {[%clk 0:02:43.3]} 24... Nb8 {[%clk 0:02:07.7]} 25. Bg5
{[%clk 0:02:30.1]} 25... Nd7 {[%clk 0:02:03.1]} 26. Bxf6 {[%clk 0:02:13.8]}
26... gxf6 {[%clk 0:02:02.2]} 27. Nh4 {[%clk 0:02:10.3]} 27... Rg8 {[%clk
0:02:02.5]} 28. Qe6 {[%clk 0:02:07.8]} 28... Qg7 {[%clk 0:01:56.8]} 29. g4
{[%clk 0:01:29]} 29... Qh6 {[%clk 0:01:43.1]} 30. Qxd7 {[%clk 0:00:54.9]} 30...
Qe3+ {[%clk 0:01:34.5]} 31. Kh1 {[%clk 0:00:53.7]} 31... Qxh3+ {[%clk
0:01:34.9]} 32. Kg1 {[%clk 0:00:54.4]} 32... Qh2# {[%clk 0:01:35.8]} 0-1

[Event "*** Titled Tuesday Blitz"]
[Site "Chess.com"]
[Date "2020.01.07"]
[Round "3"]
[White "Gr3egor"]
[Black "Sergey85Rodchenkov"]
[Result "1-0"]
[WhiteElo "2749"]
[BlackElo "2467"]
[TimeControl "180+2"]
[EndTime "13:37:07 PST"]
[Termination "Gr3egor won by resignation"]

1. d4 {[%clk 0:03:01.9]} 1... d5 {[%clk 0:02:59]} 2. c4 {[%clk 0:03:02.5]} 2...
dxc4 {[%clk 0:03:00.5]} 3. e4 {[%clk 0:03:02.6]} 3... e5 {[%clk 0:02:58.4]} 4.
Nf3 {[%clk 0:03:01.7]} 4... exd4 {[%clk 0:02:58.9]} 5. Bxc4 {[%clk 0:03:02.8]}
5... Nc6 {[%clk 0:02:58.7]} 6. O-O {[%clk 0:03:02.7]} 6... Be6 {[%clk
0:03:00.2]} 7. Bxe6 {[%clk 0:03:03.1]} 7... fxe6 {[%clk 0:03:01.1]} 8. Qb3
{[%clk 0:03:04.6]} 8... Qd7 {[%clk 0:03:02.5]} 9. Qxb7 {[%clk 0:03:04.7]} 9...
Rb8 {[%clk 0:03:04]} 10. Qa6 {[%clk 0:03:05]} 10... Bd6 {[%clk 0:02:59.7]} 11.
Rd1 {[%clk 0:03:00.2]} 11... Nf6 {[%clk 0:02:56.8]} 12. Nbd2 {[%clk 0:02:53.6]}
12... O-O {[%clk 0:02:57.3]} 13. a3 {[%clk 0:02:47.7]} 13... e5 {[%clk
0:02:50.1]} 14. b4 {[%clk 0:02:43.6]} 14... Rb6 {[%clk 0:02:44.2]} 15. Qc4+
{[%clk 0:02:40.4]} 15... Kh8 {[%clk 0:02:44.6]} 16. Qe2 {[%clk 0:02:00.4]} 16...
Rbb8 {[%clk 0:02:27.5]} 17. Nc4 {[%clk 0:01:54.4]} 17... Qe6 {[%clk 0:02:24.5]}
18. Bd2 {[%clk 0:01:53.3]} 18... Ne7 {[%clk 0:02:20.9]} 19. Ng5 {[%clk
0:01:50.5]} 19... Qd7 {[%clk 0:02:08.7]} 20. f4 {[%clk 0:01:41.1]} 20... Nc6
{[%clk 0:01:43.8]} 21. f5 {[%clk 0:01:38.2]} 21... Nd8 {[%clk 0:01:43.3]} 22.
Rac1 {[%clk 0:01:39.2]} 22... h6 {[%clk 0:01:42.4]} 23. Nf3 {[%clk 0:01:37.4]}
23... Nf7 {[%clk 0:01:43.1]} 24. Nh4 {[%clk 0:01:38.6]} 24... Rfc8 {[%clk
0:01:40.8]} 25. Ng6+ {[%clk 0:01:34.5]} 25... Kg8 {[%clk 0:01:41.4]} 26. g4
{[%clk 0:01:36.4]} 26... c5 {[%clk 0:01:34]} 27. h4 {[%clk 0:01:31.5]} 27...
cxb4 {[%clk 0:01:22.9]} 28. axb4 {[%clk 0:01:33.4]} 28... Bxb4 {[%clk
0:01:14.8]} 29. Bxb4 {[%clk 0:01:31.8]} 29... Rxb4 {[%clk 0:01:13.8]} 30. Ncxe5
{[%clk 0:01:30.9]} 30... Nxe5 {[%clk 0:01:08.5]} 31. Nxe5 {[%clk 0:01:32.8]}
31... Qe8 {[%clk 0:01:06.8]} 32. Rxc8 {[%clk 0:01:29.4]} 32... Qxc8 {[%clk
0:01:07.6]} 33. g5 {[%clk 0:01:29.8]} 33... Qe8 {[%clk 0:01:07]} 34. Qa2+ {[%clk
0:01:28.4]} 34... Kh8 {[%clk 0:00:51]} 35. Nf7+ {[%clk 0:01:25.9]} 1-0

[Event "*** Titled Tuesday Blitz"]
[Site "Chess.com"]
[Date "2020.01.07"]
[Round "3"]
[White "Sebastian"]
[Black "Kumi29"]
[Result "1-0"]
[WhiteElo "2942"]
[BlackElo "2514"]
[TimeControl "180+2"]
[EndTime "13:37:14 PST"]
[Termination "Sebastian won by resignation"]

1. e4 {[%clk 0:03:01.9]} 1... d5 {[%clk 0:03:00.6]} 2. exd5 {[%clk 0:03:02.8]}
2... Qxd5 {[%clk 0:03:02.5]} 3. Nc3 {[%clk 0:03:04.1]} 3... Qd8 {[%clk
0:03:03.8]} 4. d4 {[%clk 0:03:05.1]} 4... Nf6 {[%clk 0:03:05]} 5. Nf3 {[%clk
0:03:06.5]} 5... g6 {[%clk 0:03:06.2]} 6. h3 {[%clk 0:03:03.8]} 6... Bg7 {[%clk
0:03:06.9]} 7. Bc4 {[%clk 0:03:05.4]} 7... O-O {[%clk 0:03:06.9]} 8. O-O {[%clk
0:03:07]} 8... Nc6 {[%clk 0:03:02.7]} 9. a3 {[%clk 0:02:57.2]} 9... e6 {[%clk
0:03:02.4]} 10. Bg5 {[%clk 0:02:52.4]} 10... Ne7 {[%clk 0:03:01]} 11. Qd2 {[%clk
0:02:47.4]} 11... b6 {[%clk 0:02:57.6]} 12. Rad1 {[%clk 0:02:38.3]} 12... Bb7
{[%clk 0:02:55.9]} 13. Ne5 {[%clk 0:02:39.9]} 13... Ned5 {[%clk 0:02:17.1]} 14.
Rfe1 {[%clk 0:02:34.1]} 14... Nxc3 {[%clk 0:02:13.3]} 15. bxc3 {[%clk
0:02:34.9]} 15... Qd6 {[%clk 0:02:10.3]} 16. Qf4 {[%clk 0:01:25.1]} 16... Nd5
{[%clk 0:02:01.9]} 17. Bxd5 {[%clk 0:01:25.4]} 17... Qxd5 {[%clk 0:02:02.6]} 18.
Nf3 {[%clk 0:01:25.5]} 18... Qc4 {[%clk 0:01:52.2]} 19. Be7 {[%clk 0:01:16.5]}
19... Rfe8 {[%clk 0:01:47.7]} 20. Bf6 {[%clk 0:01:16.7]} 20... Bxf3 {[%clk
0:01:40.9]} 21. Bxg7 {[%clk 0:01:17.7]} 21... Kxg7 {[%clk 0:01:27.7]} 22. Qxf3
{[%clk 0:01:19.2]} 22... c5 {[%clk 0:01:24.2]} 23. h4 {[%clk 0:01:17.3]} 23...
Rad8 {[%clk 0:01:21.6]} 24. h5 {[%clk 0:01:15.4]} 24... cxd4 {[%clk 0:01:19.6]}
25. h6+ {[%clk 0:01:16.3]} 25... Kxh6 {[%clk 0:01:18.7]} 26. Qf6 {[%clk
0:01:02.9]} 26... dxc3 {[%clk 0:01:14.5]} 27. Rxd8 {[%clk 0:01:02.4]} 27... Rxd8
{[%clk 0:01:13.3]} 28. Qxd8 {[%clk 0:01:03.2]} 28... Qa4 {[%clk 0:01:12]} 29.
Qf6 {[%clk 0:00:48.3]} 29... Qxc2 {[%clk 0:01:12.2]} 30. Re3 {[%clk 0:00:49.3]}
30... Qd1+ {[%clk 0:01:08.6]} 31. Kh2 {[%clk 0:00:50.1]} 31... Qd6+ {[%clk
0:01:09.6]} 32. f4 {[%clk 0:00:51.2]} 1-0

[Event "*** Titled Tuesday Blitz"]
[Site "Chess.com"]
[Date "2020.01.07"]
[Round "3"]
[White "Region_07"]
[Black "chessking2151"]
[Result "0-1"]
[WhiteElo "2376"]
[BlackElo "2602"]
[TimeControl "180+2"]
[EndTime "13:37:16 PST"]
[Termination "chessking2151 won by resignation"]

1. d4 {[%clk 0:02:59.4]} 1... Nf6 {[%clk 0:02:55.4]} 2. Bg5 {[%clk 0:02:59.7]}
2... Ne4 {[%clk 0:02:53]} 3. h4 {[%clk 0:02:59.9]} 3... d5 {[%clk 0:02:52.8]} 4.
e3 {[%clk 0:03:00.5]} 4... c5 {[%clk 0:02:50.3]} 5. Bd3 {[%clk 0:02:54.1]} 5...
cxd4 {[%clk 0:02:35.4]} 6. exd4 {[%clk 0:02:54.3]} 6... Nc6 {[%clk 0:02:17.6]}
7. c3 {[%clk 0:02:49.4]} 7... Bf5 {[%clk 0:01:45.9]} 8. Nf3 {[%clk 0:02:30.5]}
8... Qc7 {[%clk 0:01:42.7]} 9. Qe2 {[%clk 0:02:26.8]} 9... e6 {[%clk 0:01:14.3]}
10. Nbd2 {[%clk 0:02:24.5]} 10... Nxd2 {[%clk 0:01:00]} 11. Qxd2 {[%clk
0:01:55.7]} 11... Bg4 {[%clk 0:00:54.6]} 12. Qe3 {[%clk 0:01:49.8]} 12... Bd6
{[%clk 0:00:52.4]} 13. h5 {[%clk 0:01:16.6]} 13... f6 {[%clk 0:00:37]} 14. Bh4
{[%clk 0:01:13.6]} 14... Bf4 {[%clk 0:00:36.1]} 15. Qe2 {[%clk 0:01:14.2]} 15...
e5 {[%clk 0:00:33.5]} 16. dxe5 {[%clk 0:01:02.1]} 16... fxe5 {[%clk 0:00:32]}
17. O-O {[%clk 0:00:54.9]} 17... O-O {[%clk 0:00:28.5]} 18. Bb5 {[%clk
0:00:38.5]} 18... e4 {[%clk 0:00:23.7]} 19. Bxc6 {[%clk 0:00:37.1]} 19... bxc6
{[%clk 0:00:22.8]} 0-1